bitfinex/quotes_BTCUSD_20241223
["timestamp","ask_amount","ask_price","bid_price","bid_amount"]
[1734917073581,0.06013005,94055.0,94036.0,0.0430713]
[1734917073582,0.09116221,94047.0,94036.0,0.0430713]
[1734917073784,0.212661,94046.0,94029.0,0.2127]
[1734917073990,0.001,94036.0,94035.0,0.006]
[1734917074169,0.09116221,94047.0,94033.0,0.02133472]
[1734917074551,0.06013005,94054.0,94033.0,0.02133472]
[1734917074755,0.09116221,94047.0,94033.0,0.02133472]
[1734917074953,0.09116221,94047.0,94034.0,0.212689]
[1734917075499,0.09116221,94047.0,94034.0,0.084689]
[1734917075699,0.09116221,94047.0,94034.0,0.212689]
[1734917075910,0.212616,94067.0,94033.0,0.02133472]
[1734917075911,0.06013005,94067.0,94046.0,0.212661]
[1734917076109,0.00016236,94067.0,94050.0,0.30079293]
[1734917076313,0.00016236,94067.0,94047.0,0.1013084]
[1734917076314,0.00016236,94067.0,94054.0,0.212641]
[1734917076940,0.00016236,94067.0,94047.0,0.1013084]
[1734917076941,0.00016236,94067.0,94058.0,0.212633]
[1734917077807,0.00016236,94067.0,94066.0,0.212616]
[1734917077946,0.00016236,94067.0,94059.0,0.1013084]
[1734917078307,0.00016236,94067.0,94048.0,0.28533283]
[1734917078474,0.09132457,94067.0,94049.0,0.04285516]
[1734917078680,0.06013005,94066.0,94048.0,0.28533283]
[1734917078888,0.06013005,94065.0,94051.0,0.02132404]
[1734917079286,0.06013005,94065.0,94058.0,0.001]
[1734917079669,0.212624,94063.0,94051.0,0.02132404]
[1734917080344,0.15129226,94060.0,94048.0,0.04328319]
[1734917080482,0.212644,94054.0,94048.0,0.04328319]
[1734917080677,0.212644,94054.0,94041.0,0.02118993]
[1734917081105,0.15129226,94055.0,94041.0,0.02118993]
[1734917081307,0.212643,94054.0,94041.0,0.02118993]
[1734917081515,0.212643,94054.0,94034.0,0.04257413]
[1734917081516,0.06013005,94047.0,94034.0,0.04257413]
[1734917081728,0.212661,94046.0,94029.0,0.49803183]
[1734917081866,0.212661,94046.0,94033.0,0.02136875]
[1734917082570,0.06013005,94042.0,94029.0,0.28533283]
[1734917083158,0.212689,94034.0,94033.0,0.006]
[1734917083358,0.212676,94040.0,94033.0,0.006]
[1734917083359,0.212675,94040.0,94033.0,0.006]
[1734917083728,0.212675,94040.0,94026.0,0.02150925]
[1734917083925,0.09116221,94042.0,94033.0,0.425381]
[1734917084236,0.09116221,94042.0,94033.0,0.21269]
[1734917084845,0.212646,94053.0,94032.0,0.023]
[1734917085042,0.09116221,94042.0,94031.0,0.28533283]
[1734917085297,0.09132457,94042.0,94031.0,0.03738891]
[1734917085503,0.09132457,94042.0,94033.0,0.001]
[1734917085657,0.09132457,94042.0,94034.0,0.212689]
[1734917085879,0.00016236,94042.0,94041.0,0.212673]
[1734917087341,0.00116236,94042.0,94041.0,0.220673]
[1734917087569,0.00116236,94042.0,94041.0,0.25672488]
[1734917088308,0.00116236,94042.0,94041.0,0.27840813]
[1734917088716,0.00016236,94042.0,94041.0,0.05773513]
[1734917088950,0.00116236,94042.0,94041.0,0.02968325]
[1734917089332,0.00016236,94042.0,94041.0,0.02168325]
[1734917089533,0.00116236,94042.0,94041.0,0.02968325]
[1734917089969,0.00016236,94042.0,94041.0,0.02168325]
[1734917090135,0.00016236,94042.0,94041.0,0.02968325]
[1734917090342,0.00116236,94042.0,94041.0,0.02968325]
[1734917090559,0.00016236,94042.0,94036.0,0.21615154]
[1734917091164,0.00016236,94042.0,94036.0,0.03713546]
[1734917091374,0.00016236,94042.0,94033.0,8.56e-05]
[1734917091592,0.00016236,94042.0,94041.0,0.02111045]
[1734917092006,0.00116236,94042.0,94041.0,0.02911045]
[1734917092259,0.00016236,94042.0,94041.0,0.02111045]
[1734917093254,0.00116236,94042.0,94041.0,0.02111045]
[1734917093393,0.00016236,94042.0,94041.0,0.02111045]
[1734917093819,0.00116236,94042.0,94041.0,0.02911045]
[1734917094689,0.212618,94066.0,94041.0,0.15341885]
[1734917094865,0.212618,94066.0,94051.0,0.21265]
[1734917095064,0.09116221,94062.0,94051.0,0.21265]
[1734917095272,0.09116221,94058.0,94045.0,0.235664]
[1734917095476,0.09116221,94058.0,94041.0,0.02111045]
[1734917095477,0.001,94042.0,94041.0,0.06637228]
[1734917095681,0.212673,94041.0,94034.0,0.11738836]
[1734917095860,0.212659,94047.0,94034.0,0.11738836]
[1734917096463,0.212659,94047.0,94034.0,0.15430864]
[1734917096859,0.001,94042.0,94041.0,0.009]
[1734917097062,0.09116221,94049.0,94040.0,0.02116461]
[1734917098314,0.06013005,94039.0,94033.0,8.56e-05]
[1734917098537,0.09116221,94041.0,94033.0,8.56e-05]
[1734917098698,0.2128142,94054.0,94035.0,0.212686]
[1734917098900,0.2128142,94054.0,94040.0,0.19560534]
[1734917099377,0.48558825,94054.0,94033.0,8.56e-05]
[1734917099580,0.09116221,94041.0,94033.0,8.56e-05]
[1734917099750,0.09116221,94039.0,94033.0,8.56e-05]
[1734917099927,0.212682,94037.0,94033.0,8.56e-05]
[1734917100131,0.09116221,94038.0,94033.0,8.56e-05]
[1734917100335,0.09116221,94041.0,94033.0,8.56e-05]
[1734917100592,0.09116221,94038.0,94028.0,0.08859922]
[1734917100907,0.09116221,94038.0,94033.0,0.02129539]
[1734917101120,0.06013005,94033.0,94031.0,0.00016236]
[1734917101307,0.15129226,94032.0,94031.0,0.00016236]
[1734917101511,0.23119226,94032.0,94031.0,0.00016236]
[1734917101694,0.54519366,94032.0,94031.0,0.00016236]
[1734917102277,0.73262244,94032.0,94031.0,0.00016236]
[1734917102483,0.93262244,94032.0,94031.0,3.6e-07]
[1734917103025,0.93262244,94032.0,93981.0,0.09496469]
[1734917103026,0.36406926,93995.0,93981.0,0.09496469]
[1734917103231,0.36406926,93995.0,93994.0,0.00024754]
[1734917103232,0.46537766,93995.0,93994.0,0.00024754]
[1734917105015,0.40524761,93995.0,93994.0,0.00024754]
[1734917105215,0.30393921,93995.0,93994.0,0.00024754]
[1734917105417,0.36606926,93995.0,93994.0,0.00024754]
[1734917105618,0.09116221,93995.0,93967.0,0.11738836]
[1734917105818,5.749e-05,93995.0,93971.0,0.14038836]
[1734917106025,0.00105749,93995.0,93977.0,0.212818]
[1734917106265,0.09116221,93989.0,93978.0,0.023]
[1734917106681,0.00105749,93995.0,93978.0,0.023]
[1734917106903,0.00105749,93995.0,93981.0,0.0491]
[1734917107130,5.749e-05,93995.0,93983.0,0.1]
[1734917107308,5.749e-05,93995.0,93993.0,0.023]
[1734917107463,5.749e-05,93995.0,93994.0,0.1243084]
[1734917107837,5.749e-05,93995.0,93994.0,0.3370874]
[1734917108205,5.749e-05,93995.0,93994.0,0.1243084]
[1734917108379,5.749e-05,93995.0,93994.0,0.14613362]
[1734917108565,5.749e-05,93995.0,93994.0,0.17834981]
[1734917108767,0.09116221,94008.0,93994.0,0.03221619]
[1734917108768,0.21275,94007.0,93994.0,0.03221619]
[1734917108962,0.01,93995.0,93994.0,0.00016242]
[1734917109523,0.01,93995.0,93994.0,0.00316242]
[1734917109742,0.011,93995.0,93994.0,0.00316242]
[1734917109884,0.01,93995.0,93994.0,0.00016242]
[1734917110303,0.011,93995.0,93994.0,0.00316242]
[1734917110560,0.01,93995.0,93991.0,0.0110692]
[1734917110861,0.011,93995.0,93994.0,0.003]
[1734917111051,0.06013005,94017.0,94006.0,0.21275]
[1734917111207,0.15,94039.0,93995.0,0.023]
[1734917111208,0.06013005,94016.0,93995.0,0.023]
[1734917111410,0.06013005,94021.0,93999.0,0.023]
[1734917111611,0.15,94039.0,93999.0,0.023]
[1734917111612,0.06013005,94016.0,93999.0,0.023]
[1734917111837,0.06013005,94016.0,93997.0,0.023]
[1734917112158,0.36012675,93995.0,93994.0,0.003]
[1734917112361,0.14734975,93993.0,93992.0,8.56e-05]
[1734917112572,0.24865815,93993.0,93992.0,8.56e-05]
[1734917113978,0.24965815,93993.0,93992.0,8.56e-05]
[1734917115394,0.47955815,93993.0,93992.0,8.56e-05]
[1734917115594,0.0872197,93964.0,93945.0,0.000171]
[1734917115793,0.0872197,93964.0,93957.0,0.00054158]
[1734917115794,0.212852,93962.0,93957.0,0.00054158]
[1734917115971,0.36019675,93964.0,93957.0,0.00054158]
[1734917116180,0.212849,93963.0,93957.0,0.00054158]
[1734917116940,0.0872197,93960.0,93957.0,0.00054158]
[1734917117219,0.0872197,93960.0,93957.0,0.00854158]
[1734917117563,0.0872197,93960.0,93957.0,0.00054158]
[1734917117987,0.212784,93992.0,93959.0,0.023]
[1734917118187,0.0872197,93971.0,93961.0,0.023]
[1734917118392,0.0872197,93971.0,93957.0,0.0323216]
[1734917118593,0.0872197,93971.0,93957.0,0.00054158]
[1734917119125,0.212829,93972.0,93958.0,0.212861]
[1734917119126,0.0872197,93972.0,93958.0,0.212861]
[1734917119323,0.0872197,93971.0,93958.0,0.1243084]
[1734917119530,0.0872197,93971.0,93960.0,0.023]
[1734917119733,0.0882197,93971.0,93960.0,0.023]
[1734917119937,0.0882197,93971.0,93958.0,0.1013084]
[1734917119938,0.001,93971.0,93963.0,0.212849]
[1734917120143,0.0882197,93971.0,93965.0,0.212845]
[1734917120345,0.0872197,93984.0,93968.0,0.023]
[1734917120506,0.0872197,93984.0,93970.0,0.023]
[1734917120681,0.001,93971.0,93970.0,0.023]
[1734917121736,0.001,93971.0,93970.0,0.1441168]
[1734917122031,0.212755,94005.0,93988.0,0.212791]
[1734917122402,0.06013005,94011.0,93995.0,0.212775]
[1734917122583,0.0872197,93997.0,93991.0,0.212786]
[1734917122985,0.0872197,93997.0,93980.0,0.40831409]
[1734917123183,0.27290505,93996.0,93980.0,0.40831409]
[1734917123387,0.0872197,93985.0,93968.0,0.0217094]
[1734917124332,0.0872197,93985.0,93969.0,0.1013084]
[1734917124493,0.0872197,93985.0,93971.0,0.425662]
[1734917124833,0.0872197,93992.0,93971.0,0.1013084]
[1734917125037,0.0872197,93989.0,93979.0,0.212811]
[1734917125562,0.0872197,93989.0,93979.0,0.084811]
[1734917125871,0.0872197,93989.0,93973.0,0.212826]
[1734917126061,0.0872197,93985.0,93974.0,0.212824]
[1734917126268,0.0872197,93989.0,93974.0,0.212824]
[1734917126874,0.0872197,93989.0,93979.0,0.003]
[1734917127338,0.0872197,93986.0,93974.0,0.212824]
[1734917127469,0.0872197,93985.0,93976.0,0.21282]
[1734917127666,0.0872197,93989.0,93976.0,0.3141284]
[1734917127854,0.06013005,94000.0,93980.0,0.30200058]
[1734917128055,0.06013005,93999.0,93977.0,0.425636]
[1734917128294,0.0872197,93989.0,93977.0,0.212818]
[1734917128501,0.082,94011.0,93971.0,0.40831409]
[1734917128502,0.0872197,93985.0,93971.0,0.40831409]
[1734917128734,0.0872197,93980.0,93974.0,0.003]
[1734917128888,0.0872197,93972.0,93971.0,0.44025424]
[1734917129874,0.0872197,93972.0,93971.0,0.44225424]
[1734917130082,0.425624,93980.0,93971.0,0.40831409]
[1734917130285,0.0872197,93972.0,93963.0,0.00054158]
[1734917130483,0.06013005,93967.0,93942.0,0.004259]
[1734917130686,0.0872197,93972.0,93942.0,0.004259]
[1734917130687,0.0872197,93957.0,93942.0,0.004259]
[1734917130891,0.14734975,93957.0,93941.0,8.56e-05]
[1734917131158,0.212866,93956.0,93941.0,8.56e-05]
[1734917131365,0.14734975,93957.0,93941.0,0.02134083]
[1734917131508,0.212881,93949.0,93941.0,8.56e-05]
[1734917131715,0.14734975,93946.0,93941.0,8.56e-05]
[1734917131923,0.24865815,93946.0,93941.0,8.56e-05]
[1734917132321,0.32535815,93946.0,93941.0,8.56e-05]
[1734917133327,0.32635815,93946.0,93945.0,0.006171]
[1734917134377,0.14734975,93942.0,93941.0,8.56e-05]
[1734917134541,0.39998901,93942.0,93941.0,8.56e-05]
[1734917134746,0.54785815,93942.0,93941.0,8.56e-05]
[1734917135621,0.54839919,93942.0,93941.0,8.56e-05]
[1734917135793,0.55739919,93942.0,93941.0,0.0010856]
[1734917136209,0.64839919,93942.0,93941.0,8.56e-05]
[1734917136410,0.65639919,93942.0,93941.0,0.0010856]
[1734917136821,0.36917949,93942.0,93941.0,0.0010856]
[1734917137056,0.31997949,93942.0,93941.0,0.0010856]
[1734917137286,0.19706914,93942.0,93941.0,0.0010856]
[1734917137487,0.10984944,93942.0,93941.0,0.0010856]
[1734917137697,0.25719919,93942.0,93941.0,0.0010856]
[1734917137861,0.16997949,93942.0,93941.0,0.0010856]
[1734917138070,0.25719919,93942.0,93941.0,0.0010856]
[1734917138303,0.16997949,93942.0,93941.0,0.0010856]
[1734917138465,0.26619919,93942.0,93941.0,0.0010856]
[1734917138673,0.17897949,93942.0,93941.0,0.0010856]
[1734917139171,0.24919919,93942.0,93941.0,8.56e-05]
[1734917139702,0.25519919,93942.0,93941.0,8.56e-05]
[1734917139883,0.24919919,93942.0,93941.0,8.56e-05]
[1734917140285,0.25319919,93942.0,93941.0,8.56e-05]
[1734917140610,0.25319919,93942.0,93917.0,0.0183897]
[1734917140611,0.0872197,93923.0,93917.0,0.0183897]
[1734917140824,0.0872197,93923.0,93916.0,0.02178604]
[1734917141437,0.0872197,93928.0,93917.0,0.212953]
[1734917141939,0.001,93923.0,93917.0,0.217953]
[1734917142107,0.001,93923.0,93918.0,0.0456]
[1734917142326,0.00054104,93942.0,93930.0,0.212923]
[1734917142709,0.00054104,93942.0,93932.0,0.0794]
[1734917142894,0.00054104,93942.0,93938.0,0.212905]
[1734917143089,0.00054104,93942.0,93934.0,0.212915]
[1734917143317,0.00054104,93942.0,93932.0,0.0404146]
[1734917143517,0.00054104,93942.0,93932.0,0.02092909]
[1734917144146,0.00054104,93942.0,93940.0,0.212901]
[1734917144498,0.00054104,93942.0,93940.0,0.3142094]
[1734917144801,0.00054104,93942.0,93941.0,0.1243084]
[1734917145016,0.09339441,93983.0,93977.0,0.212816]
[1734917145017,0.18061411,93983.0,93977.0,0.212816]
[1734917145225,0.06013005,93990.0,93961.0,0.023]
[1734917145426,0.09339441,93994.0,93951.0,0.49773167]
[1734917145427,0.06013005,93972.0,93951.0,0.15]
[1734917145665,0.06013005,93972.0,93940.0,0.30228901]
[1734917145666,0.06013005,93952.0,93932.0,0.153]
[1734917145871,0.06013005,93952.0,93934.0,0.212914]
[1734917146126,0.0872197,93969.0,93940.0,0.30228901]
[1734917146301,0.0872197,93963.0,93942.0,0.212897]
[1734917146501,0.0872197,93963.0,93943.0,0.3142014]
[1734917146736,0.0872197,93963.0,93935.0,0.0216978]
[1734917146737,0.0872197,93955.0,93944.0,0.212892]
[1734917146979,0.008,93952.0,93935.0,0.0216978]
[1734917147493,0.0872197,93955.0,93936.0,0.21291]
[1734917147961,0.0872197,93955.0,93943.0,0.212894]
[1734917148503,0.04000294,93964.0,93951.0,0.212876]
[1734917148690,0.0872197,93965.0,93951.0,0.212876]
[1734917148890,0.009,93963.0,93951.0,0.212876]
[1734917149096,0.0872197,93963.0,93951.0,0.212876]
[1734917149541,0.0872197,93959.0,93951.0,0.212876]
[1734917149745,0.0872197,93963.0,93944.0,0.1013084]
[1734917149952,0.0872197,93958.0,93952.0,0.212873]
[1734917150114,0.0872197,93954.0,93952.0,0.212873]
[1734917150296,0.06013005,93967.0,93946.0,0.212888]
[1734917150297,0.0872197,93958.0,93946.0,0.212888]
[1734917150511,0.0872197,93963.0,93944.0,0.1013084]
[1734917150742,0.0872197,93962.0,93952.0,0.212874]
[1734917151119,0.0872197,93958.0,93952.0,0.212874]
[1734917151725,0.0872197,93954.0,93951.0,0.002]
[1734917151932,0.0872197,93954.0,93952.0,0.212874]
[1734917152134,0.0872197,93962.0,93952.0,0.212874]
[1734917152339,0.0872197,93962.0,93952.0,0.216874]
[1734917152572,0.0872197,93962.0,93952.0,0.212874]
[1734917152780,0.0872197,93958.0,93952.0,0.212874]
[1734917153035,0.0872197,93954.0,93944.0,0.03955742]
[1734917153377,0.0872197,93954.0,93941.0,0.1500855]
[1734917153378,0.0872197,93954.0,93951.0,0.005]
[1734917153783,0.0872197,93954.0,93943.0,0.15]
[1734917154137,0.0872197,93958.0,93943.0,0.15]
[1734917154255,0.0872197,93954.0,93943.0,0.15]
[1734917154456,0.0872197,93954.0,93941.0,0.03886643]
[1734917154929,0.0872197,93954.0,93946.0,0.212887]
[1734917155384,0.0872197,93954.0,93952.0,0.003]
[1734917155583,0.16160945,93972.0,93954.0,0.212869]
[1734917155871,0.0872197,93962.0,93954.0,0.212869]
[1734917156088,0.000171,93972.0,93954.0,0.425738]
[1734917156285,0.0872197,93965.0,93945.0,0.15]
[1734917156500,0.0872197,93965.0,93954.0,0.15]
[1734917157054,0.25294086,93972.0,93954.0,0.15]
[1734917157055,0.0872197,93969.0,93954.0,0.15]
[1734917157209,0.0872197,93965.0,93957.0,0.212861]
[1734917157628,0.06013005,93966.0,93949.0,0.15]
[1734917157854,0.0872197,93965.0,93949.0,0.15]
[1734917158819,0.0872197,93965.0,93951.0,0.15]
[1734917159001,0.212834,93970.0,93949.0,0.15]
[1734917159002,0.000171,93972.0,93959.0,0.212857]
[1734917159209,0.000171,93972.0,93953.0,0.15]
[1734917159210,0.0872197,93965.0,93953.0,0.15]
[1734917159420,0.0872197,93965.0,93955.0,0.212867]
[1734917159850,0.0872197,93965.0,93955.0,0.425734]
[1734917160063,0.0872197,93965.0,93955.0,0.212867]
[1734917160265,0.0872197,93969.0,93959.0,0.212856]
[1734917160468,0.000171,93972.0,93965.0,0.425687]
[1734917160678,0.000171,93972.0,93965.0,0.212844]
[1734917160828,0.000171,93969.0,93967.0,0.21284]
[1734917161032,0.000171,93969.0,93961.0,0.15]
[1734917161262,0.000171,93969.0,93958.0,0.03948722]
[1734917161480,0.000171,93969.0,93956.0,0.212865]
[1734917161638,0.000171,93969.0,93957.0,0.15]
[1734917162041,0.3000827,93957.0,93956.0,0.00016245]
[1734917162269,0.36021275,93957.0,93956.0,0.00016245]
[1734917162468,0.0872197,93957.0,93956.0,0.00016245]
[1734917162706,0.14734975,93957.0,93956.0,0.00016245]
[1734917162978,0.0872197,93957.0,93956.0,0.00016245]
[1734917163221,0.14734975,93957.0,93956.0,0.00016245]
[1734917163404,0.14734975,93957.0,93956.0,0.00416245]
[1734917163555,0.14734975,93957.0,93956.0,0.00016245]
[1734917163768,0.24865815,93957.0,93956.0,0.00016245]
[1734917164170,0.14734975,93957.0,93956.0,0.00016245]
[1734917164370,0.0872197,93957.0,93956.0,0.00016245]
[1734917164775,0.06013005,93965.0,93956.0,0.00016245]
[1734917164973,0.0872197,93962.0,93956.0,0.00116245]
[1734917165181,0.27313805,93969.0,93956.0,0.00116245]
[1734917165378,0.0872197,93961.0,93956.0,0.00016245]
[1734917165697,0.0872197,93957.0,93953.0,0.212872]
[1734917165904,0.0872197,93957.0,93956.0,0.001]
[1734917166106,0.0872197,93957.0,93951.0,0.212875]
[1734917166308,0.0872197,93956.0,93945.0,0.0767]
[1734917166540,0.06013005,93968.0,93947.0,0.15]
[1734917166738,0.000171,93969.0,93955.0,0.212867]
[1734917166947,0.000171,93969.0,93956.0,0.2513084]
[1734917167112,0.0872197,93967.0,93957.0,0.15]
[1734917167743,0.0872197,93967.0,93957.0,0.362863]
[1734917167986,0.000171,93969.0,93957.0,0.362863]
[1734917168513,0.000171,93969.0,93952.0,0.15]
[1734917168737,0.000171,93969.0,93957.0,0.001]
[1734917168973,0.000171,93969.0,93960.0,0.15]
[1734917169341,0.000171,93969.0,93965.0,0.212845]
[1734917169546,0.000171,93969.0,93966.0,0.15]
[1734917170172,0.001171,93969.0,93966.0,0.15]
[1734917170541,5.912e-05,93969.0,93968.0,0.022]
[1734917170717,5.912e-05,93969.0,93968.0,0.1013084]
[1734917170928,0.000171,93972.0,93969.0,0.212836]
[1734917171110,0.000171,93972.0,93970.0,0.1013084]
[1734917171321,0.0003333,93972.0,93970.0,0.1013084]
[1734917171547,0.0001623,93972.0,93970.0,0.1013084]
[1734917172041,0.0001623,93972.0,93971.0,0.67431295]
[1734917172188,0.0001623,93972.0,93971.0,0.56128235]
[1734917172389,0.0011623,93972.0,93971.0,0.56128235]
[1734917172595,0.0001712,93993.0,93979.0,0.03986995]
[1734917172806,0.0001712,93993.0,93992.0,0.362784]
[1734917173005,0.0872197,94018.0,93993.0,0.15]
[1734917173205,0.08738215,94018.0,93995.0,0.15]
[1734917173412,0.08738215,94018.0,94001.0,0.212763]
[1734917173413,0.00016245,94018.0,94001.0,0.212763]
[1734917173751,0.00016245,94018.0,94016.0,0.212729]
[1734917173992,0.00016245,94018.0,94014.0,0.212734]
[1734917174165,0.00016245,94018.0,94002.0,0.1013084]
[1734917174166,0.00016245,94018.0,94010.0,0.02151155]
[1734917174366,0.21275,94007.0,94001.0,0.04336984]
[1734917174570,0.14734975,94008.0,94001.0,0.04336984]
[1734917174774,0.14734975,94008.0,93990.0,0.15]
[1734917175138,0.0872197,94008.0,93992.0,0.15]
[1734917175340,0.0872197,94008.0,93988.0,0.02091726]
[1734917175341,0.14734975,94008.0,93994.0,0.15]
[1734917175548,0.0872197,94006.0,93976.0,0.14096873]
[1734917175747,0.0872197,94002.0,93980.0,0.15]
[1734917175949,0.2999807,94002.0,93983.0,0.0208065]
[1734917176186,0.2999807,94002.0,93984.0,0.15]
[1734917176363,0.0872197,93996.0,93978.0,0.04236617]
[1734917176544,0.212783,93993.0,93977.0,0.15]
[1734917176742,0.212783,93993.0,93978.0,0.001]
[1734917177216,0.0872197,93989.0,93978.0,0.001]
[1734917177397,0.212788,93991.0,93978.0,0.001]
[1734917177546,0.0872197,93989.0,93978.0,0.001]
[1734917177783,0.212788,93991.0,93978.0,0.001]
[1734917177784,0.0872197,93981.0,93978.0,0.001]
[1734917178364,0.0872197,93967.0,93950.0,0.212877]
[1734917178559,0.0872197,93967.0,93954.0,0.0001623]
[1734917178763,0.0872197,93967.0,93955.0,0.1013084]
[1734917179746,0.425684,93966.0,93954.0,0.0001623]
[1734917180009,0.06013005,93964.0,93954.0,0.0011623]
[1734917180207,0.14734975,93955.0,93954.0,0.0001623]
[1734917180411,0.0872197,93955.0,93954.0,0.0001623]
[1734917180826,0.21282,93976.0,93954.0,0.0001623]
[1734917180827,0.06013005,93974.0,93954.0,0.04441932]
[1734917181081,0.0872197,93962.0,93954.0,0.0001623]
[1734917181272,0.06013005,93977.0,93954.0,0.1014707]
[1734917181599,0.06013005,93977.0,93956.0,0.15]
[1734917181802,0.06013005,93977.0,93958.0,0.15]
[1734917182013,0.0872197,93972.0,93958.0,0.15]
[1734917182416,0.21282,93976.0,93958.0,0.15]
[1734917182660,0.0872197,93972.0,93958.0,0.15]
[1734917183449,0.0872197,93972.0,93958.0,0.152]
[1734917185568,0.212847,93965.0,93958.0,0.002]
[1734917185770,0.14734975,93959.0,93958.0,0.002]
[1734917186739,0.212861,93958.0,93954.0,0.0001623]
[1734917187103,0.0872197,93955.0,93954.0,0.0001623]
[1734917188588,0.14734975,93955.0,93954.0,0.0001623]
[1734917189319,0.14734975,93955.0,93954.0,0.0041623]
[1734917189525,0.14734975,93955.0,93954.0,0.0001623]
[1734917189886,0.14734975,93955.0,93954.0,0.0041623]
[1734917190638,0.0872197,93944.0,93920.0,0.212945]
[1734917190844,0.0872197,93943.0,93927.0,0.00054104]
[1734917191066,0.0872197,93938.0,93927.0,0.00054104]
[1734917191263,0.212927,93929.0,93927.0,0.00054104]
[1734917191463,0.0872197,93930.0,93927.0,0.00054104]
[1734917191665,0.0872197,93933.0,93927.0,0.00054104]
[1734917192045,0.0872197,93930.0,93927.0,0.00054104]
[1734917192468,0.0872197,93928.0,93927.0,0.00054104]
[1734917192674,0.33054975,93907.0,93906.0,0.04283431]
[1734917192847,0.84403415,93907.0,93906.0,7e-05]
[1734917193271,0.96703415,93907.0,93906.0,7e-05]
[1734917193671,0.14734975,93901.0,93898.0,8.55e-05]
[1734917193915,0.24998957,93901.0,93898.0,8.55e-05]
[1734917194099,0.24865815,93901.0,93898.0,8.55e-05]
[1734917194497,0.49865815,93901.0,93898.0,8.55e-05]
[1734917195448,0.50065815,93901.0,93898.0,8.55e-05]
[1734917195652,0.40065815,93901.0,93898.0,8.55e-05]
[1734917195792,0.49865815,93901.0,93898.0,8.55e-05]
[1734917195997,0.50565815,93901.0,93898.0,8.55e-05]
[1734917196801,0.40565815,93901.0,93898.0,8.55e-05]
[1734917197006,0.50565815,93901.0,93898.0,8.55e-05]
[1734917198427,0.39865815,93901.0,93898.0,8.55e-05]
[1734917198633,0.49865815,93901.0,93898.0,8.55e-05]
[1734917198944,0.49865815,93901.0,93875.0,0.03]
[1734917198945,0.31013005,93889.0,93888.0,96.39549846]
[1734917199148,0.62165815,93889.0,93888.0,96.39549846]
[1734917199292,0.62165815,93889.0,93888.0,96.33028796]
[1734917199498,5.67429843,93889.0,93888.0,96.28428796]
[1734917199724,0.72560683,93889.0,93888.0,96.28428796]
[1734917199925,0.53838713,93889.0,93888.0,96.24600357]
[1734917200273,0.62483924,93889.0,93888.0,96.07575158]
[1734917200449,0.64563746,93889.0,93888.0,95.9773067]
[1734917200625,0.45841776,93889.0,93888.0,95.8493067]
[1734917200827,0.64563746,93889.0,93888.0,95.78532089]
[1734917201230,0.65463746,93889.0,93888.0,95.73976684]
[1734917201405,0.65199718,93889.0,93888.0,95.73976684]
[1734917201609,1.43056847,93889.0,93888.0,95.57981314]
[1734917201822,1.42115193,93889.0,93888.0,95.53972118]
[1734917202006,1.42115193,93889.0,93888.0,94.90758246]
[1734917202205,1.43015193,93889.0,93888.0,94.27704564]
[1734917202407,1.44778242,93889.0,93888.0,94.07295809]
[1734917202663,1.4414227,93889.0,93888.0,93.98775009]
[1734917203102,1.54007439,93889.0,93888.0,93.98775009]
[1734917203279,1.58315942,93889.0,93888.0,93.98775009]
[1734917203455,1.00485102,93889.0,93888.0,93.98771009]
[1734917203656,0.96176599,93889.0,93888.0,93.98771009]
[1734917203856,0.96176599,93889.0,93888.0,93.96371009]
[1734917204264,0.97076599,93889.0,93888.0,93.96371009]
[1734917204848,0.44976599,93889.0,93888.0,93.96371009]
[1734917205048,0.53249751,93889.0,93888.0,93.96371009]
[1734917205259,0.45876599,93889.0,93888.0,93.96371009]
[1734917205466,0.27154629,93889.0,93888.0,93.96371009]
[1734917205679,0.45876599,93889.0,93888.0,93.83571009]
[1734917205884,0.26254629,93889.0,93888.0,93.83571009]
[1734917206086,0.27154629,93889.0,93888.0,93.83571009]
[1734917206260,0.56007439,93889.0,93888.0,93.83571009]
[1734917206667,0.29454629,93889.0,93888.0,93.83571009]
[1734917206883,0.29863594,93889.0,93888.0,93.83571009]
[1734917207094,0.45554225,93889.0,93888.0,93.83571009]
[1734917207509,0.44654225,93889.0,93888.0,93.83571009]
[1734917207720,0.49332299,93889.0,93888.0,93.83571009]
[1734917207939,0.50232299,93889.0,93888.0,93.83571009]
[1734917208142,0.66632299,93889.0,93888.0,93.83571009]
[1734917208874,0.31897324,93889.0,93888.0,93.83579559]
[1734917209081,0.52209925,93889.0,93888.0,93.83579559]
[1734917209291,0.51309925,93889.0,93888.0,93.83579559]
[1734917210141,0.76440765,93889.0,93888.0,93.83579559]
[1734917210685,0.3157495,93889.0,93888.0,93.70779559]
[1734917210892,0.66309925,93889.0,93888.0,93.70779559]
[1734917211294,0.67209925,93889.0,93888.0,93.70779559]
[1734917213087,0.88511625,93889.0,93888.0,93.70779559]
[1734917213985,0.69789655,93889.0,93888.0,93.70779559]
[1734917214506,0.88511625,93889.0,93888.0,93.70779559]
[1734917214747,0.52489655,93889.0,93888.0,93.70779559]
[1734917215005,0.71211625,93889.0,93888.0,93.70779559]
[1734917215640,0.5429862,93889.0,93888.0,93.57979559]
[1734917215879,0.68889655,93889.0,93888.0,93.57979559]
[1734917216095,0.69789655,93889.0,93888.0,93.57979559]
[1734917216313,0.85311625,93889.0,93888.0,93.57979559]
[1734917217734,0.88511625,93889.0,93888.0,93.57979559]
[1734917217934,0.87611625,93889.0,93888.0,93.57979559]
[1734917218317,0.88511625,93889.0,93888.0,93.57979559]
[1734917218528,0.87611625,93889.0,93888.0,93.57979559]
[1734917218928,0.88511625,93889.0,93888.0,93.57979559]
[1734917219121,0.85311625,93889.0,93888.0,93.57979559]
[1734917219515,0.67489655,93889.0,93888.0,93.57979559]
[1734917219710,0.50320683,93889.0,93888.0,93.57979559]
[1734917220318,0.69059773,93889.0,93888.0,93.57979559]
[1734917220608,0.34324798,93889.0,93888.0,93.45179559]
[1734917220787,0.42146768,93889.0,93888.0,93.50049559]
[1734917221002,0.27385906,93889.0,93888.0,93.50049559]
[1734917221176,0.28285906,93889.0,93888.0,93.50049559]
[1734917221620,0.25112119,93889.0,93888.0,93.50049559]
[1734917221816,0.06013005,93891.0,93888.0,93.50049559]
[1734917222020,0.009,93889.0,93888.0,93.50065807]
[1734917222235,0.15634975,93889.0,93888.0,93.50065807]
[1734917222442,0.14734975,93889.0,93888.0,93.50065807]
[1734917222657,0.15634975,93889.0,93888.0,93.50065807]
[1734917223051,0.40765815,93889.0,93888.0,93.50065807]
[1734917223250,0.60765815,93889.0,93888.0,93.50065807]
[1734917223766,0.50765815,93889.0,93888.0,93.50065807]
[1734917223920,0.60765815,93889.0,93888.0,93.50065807]